bitfinex-derivatives/quotes_ETHF0:USTF0_20251008
["timestamp","ask_amount","ask_price","bid_price","bid_amount"]
[1759924345387,4.25907474,4491.6,4491.5,0.6512]
[1759924345583,4.25907474,4491.6,4491.5,1.05183]
[1759924345988,3.99327474,4491.6,4491.5,1.27453]
[1759924347288,3.99327474,4491.6,4491.5,0.8739]
[1759924347591,3.99327474,4491.6,4491.5,1.27453]
[1759924347791,3.99327474,4491.6,4491.5,0.8739]
[1759924347994,4.25907474,4491.6,4491.5,0.8739]
[1759924348493,3.15455474,4491.6,4491.5,1.27453]
[1759924348694,4.25907474,4491.6,4491.5,1.27453]
[1759924350694,4.25907474,4491.6,4491.5,0.8739]
[1759924351094,4.25907474,4491.6,4491.5,1.27453]
[1759924351897,4.25907474,4491.6,4491.5,0.8739]
[1759924352396,4.25907474,4491.6,4491.5,0.6512]
[1759924352595,4.25907474,4491.6,4491.5,1.05183]
[1759924354197,4.25907474,4491.6,4491.5,0.6512]
[1759924354590,3.99327474,4491.6,4491.5,0.8739]
[1759924354796,3.99327474,4491.6,4491.5,1.27453]
[1759924355497,4.25907474,4491.6,4491.5,1.27453]
[1759924361402,4.25937474,4491.6,4491.5,1.27453]
[1759924362204,3.99327474,4491.6,4491.5,0.8739]
[1759924362402,3.77937474,4491.6,4491.5,0.8739]
[1759924362701,3.77937474,4491.6,4491.5,1.27453]
[1759924362902,3.99867474,4491.6,4491.5,1.27453]
[1759924364203,4.26477474,4491.6,4491.5,1.27453]
[1759924364507,3.59805474,4491.6,4491.5,1.27453]
[1759924365504,3.99867474,4491.6,4491.5,1.27453]
[1759924365703,4.26477474,4491.6,4491.5,0.6512]
[1759924366501,4.26477474,4491.6,4491.5,1.05183]
[1759924367406,4.26477474,4491.6,4491.5,0.71013]
[1759924368306,4.26477474,4491.6,4491.5,0.92853]
[1759924368606,3.59805474,4491.6,4491.5,1.27613]
[1759924368807,3.37505474,4491.6,4491.5,1.27613]
[1759924369004,3.59805474,4491.6,4491.5,1.27613]
[1759924370204,3.37505474,4491.6,4491.5,1.27613]
[1759924370604,3.59805474,4491.6,4491.5,1.27613]
[1759924371208,3.77567474,4491.6,4491.5,1.27613]
[1759924371408,3.99867474,4491.6,4491.5,1.27613]
[1759924371608,3.77567474,4491.6,4491.5,1.27613]
[1759924371809,3.99867474,4491.6,4491.5,1.27613]
[1759924373011,4.26447474,4491.6,4491.5,1.27613]
[1759924373814,3.99867474,4491.6,4491.5,1.27613]
[1759924374412,4.26447474,4491.6,4491.5,0.3095]
[1759924374610,1.09927,4491.1,4491.0,0.40068]
[1759924374814,0.4328,4490.7,4490.6,0.72631]
[1759924375114,0.4328,4490.7,4490.6,0.3256]
[1759924375115,1.32231,4490.7,4490.6,0.3256]
[1759924375323,0.9216,4490.7,4490.6,0.72631]
[1759924375816,0.6558,4490.7,4490.6,1.16401]
[1759924376923,1.32231,4490.7,4490.6,1.16401]
[1759924377222,1.32231,4490.7,4490.6,0.72631]
[1759924377417,1.32231,4490.7,4490.6,0.3256]
[1759924377610,1.32231,4490.7,4490.6,0.544]
[1759924377812,4.28284424,4490.7,4490.6,0.3256]
[1759924378919,4.28284424,4490.7,4490.6,0.544]
[1759924380124,4.28284424,4490.7,4490.6,0.94471]
[1759924380823,3.88213424,4490.7,4490.6,0.94471]
[1759924381729,4.28284424,4490.7,4490.6,0.94471]
[1759924382332,0.6558,4490.7,4490.6,1.16401]
[1759924383322,0.87844,4491.5,4491.4,0.40064]
[1759924383524,1.58848178,4491.5,4491.4,1.16394]
[1759924383724,4.44507158,4491.5,4491.4,1.16394]
[1759924383923,4.71087158,4491.5,4491.4,1.16394]
[1759924384532,4.71087158,4491.5,4491.4,0.3256]
[1759924384928,4.71087158,4491.5,4491.4,0.94464]
[1759924385527,4.71087158,4491.5,4491.4,0.544]
[1759924385727,4.71087158,4491.5,4491.4,0.3256]
[1759924388228,0.40067,4491.1,4491.0,0.1283]
[1759924388428,0.6986,4490.8,4490.7,0.3256]
[1759924388631,1.3223,4490.8,4490.7,0.72631]
[1759924388931,1.3223,4490.8,4490.7,0.94471]
[1759924389236,0.9216,4490.8,4490.7,0.94471]
[1759924389435,0.6558,4490.8,4490.7,1.16401]
[1759924389634,0.223,4490.8,4490.7,1.16401]
[1759924393037,0.4328,4491.3,4491.2,0.4377]
[1759924393231,0.40065,4491.4,4491.3,1.16395]
[1759924393535,3.76241672,4491.4,4491.3,1.16395]
[1759924394337,3.98321672,4491.4,4491.3,1.16395]
[1759924394527,4.02601672,4491.4,4491.3,1.16395]
[1759924394730,4.24901672,4491.4,4491.3,0.3256]
[1759924396138,4.78100286,4491.4,4491.3,0.3256]
[1759924396538,4.24901672,4491.4,4491.3,0.3256]
[1759924396940,1.08956,4491.2,4491.1,0.71017]
[1759924397141,1.08956,4491.2,4491.1,0.5172]
[1759924397339,4.01827218,4491.2,4491.1,0.5172]
[1759924399141,0.8234,4490.7,4490.6,0.5172]
[1759924399342,0.9119,4490.7,4490.6,0.91791]
[1759924399541,0.6457,4490.7,4490.6,1.12841]
[1759924399841,1.0464,4490.7,4490.6,1.12841]
[1759924400243,1.0464,4490.7,4490.6,0.7277]
[1759924400640,1.0464,4490.7,4490.6,1.12841]
[1759924400841,1.3126,4490.7,4490.6,1.12841]
[1759924401346,1.3126,4490.7,4490.6,0.5172]
[1759924402142,0.40071,4490.6,4490.5,0.00252664]
[1759924402338,0.82341,4490.6,4490.5,0.00252664]
[1759924402546,4.04754792,4490.6,4490.5,0.00252664]
[1759924404942,4.04754792,4490.6,4490.5,0.31202664]
[1759924405448,3.38063792,4490.6,4490.5,0.85602664]
[1759924406146,3.78134792,4490.6,4490.5,1.25674664]
[1759924406349,0.40069,4490.9,4490.5,0.54652664]
[1759924406646,0.40067,4491.2,4491.1,0.7277]
[1759924406849,0.62367,4491.2,4491.1,0.7277]
[1759924407051,3.53071081,4491.2,4491.1,0.7277]
[1759924407443,3.74131081,4491.2,4491.1,0.7277]
[1759924407843,3.95341081,4491.2,4491.1,0.7277]
[1759924409647,4.21961081,4491.2,4491.1,0.7277]
[1759924410248,3.73041081,4491.2,4491.1,0.7277]
[1759924410451,3.95341081,4491.2,4491.1,0.7277]
[1759924411954,3.74131081,4491.2,4491.1,0.7277]
[1759924412149,3.11764081,4491.2,4491.1,1.12837]
[1759924412351,1.0895,4491.9,4491.8,0.2077]
[1759924412557,1.8442424,4491.9,4491.8,0.5172]
[1759924412755,4.75574024,4491.9,4491.8,0.5172]
[1759924413258,4.48954024,4491.9,4491.8,0.7277]
[1759924413954,4.75574024,4491.9,4491.8,0.7277]
[1759924415160,4.53274024,4491.9,4491.8,0.7277]
[1759924415351,4.75574024,4491.9,4491.8,0.7277]
[1759924416451,4.75574024,4491.9,4491.8,0.3095]
[1759924416757,4.75574024,4491.9,4491.0,0.1258]
[1759924416758,1.08955,4491.3,4491.2,0.5172]
[1759924416958,1.31255,4491.3,4491.2,0.5172]
[1759924417154,0.6889,4491.3,4491.2,0.5172]
[1759924417460,1.04635,4491.3,4491.2,0.7277]
[1759924417655,1.31255,4491.3,4491.2,0.7277]
[1759924418156,1.31255,4491.3,4491.2,1.12836]
[1759924419064,4.24224352,4491.3,4491.2,0.7277]
[1759924420155,4.24224352,4491.3,4491.2,0.5172]
[1759924420361,4.24224352,4491.3,4491.2,0.3095]
[1759924420761,4.24224352,4491.3,4491.2,0.5172]
[1759924422556,4.24224352,4491.3,4491.2,0.7443]
[1759924422557,3.97604352,4491.3,4491.2,0.7443]
[1759924423067,3.35239352,4491.3,4491.2,1.14496]
[1759924423261,3.57539352,4491.3,4491.2,1.14496]
[1759924424163,3.97604352,4491.3,4491.2,1.14496]
[1759924427157,2.92969352,4491.3,4491.2,1.14496]
[1759924427357,0.4285,4491.9,4491.8,0.2102]
[1759924427562,1.318,4491.9,4491.8,0.5379]
[1759924427762,0.82912,4491.6,4491.5,0.4636]
[1759924427962,1.84930223,4491.6,4491.5,0.4636]
[1759924428162,4.70568758,4491.6,4491.5,0.6738]
[1759924429668,4.17440535,4491.6,4491.5,0.6738]
[1759924430978,3.50788535,4491.6,4491.5,1.27993]
[1759924431277,3.90850535,4491.6,4491.5,1.27993]
[1759924431782,3.90850535,4491.6,4491.5,0.8793]
[1759924431976,4.17440535,4491.6,4491.5,0.6738]
[1759924432175,1.09504,4491.4,4491.3,0.3277]
[1759924432377,1.31804,4491.4,4491.3,0.3277]
[1759924432574,4.20227254,4491.4,4491.3,0.3277]
[1759924432970,4.20227254,4491.4,4491.0,0.6637]
[1759924432971,1.09507,4491.1,4491.0,0.6637]
[1759924433177,1.31807,4491.1,4491.0,0.6637]
[1759924433377,4.18981719,4491.1,4491.0,0.6637]
[1759924434777,4.18981719,4491.1,4490.5,0.12832664]
[1759924434778,0.2128,4490.8,4490.6,0.3277]
[1759924434984,0.82921,4490.6,4490.5,0.00252664]
[1759924435283,1.09511,4490.6,4490.5,0.33022664]
[1759924435476,3.96115718,4490.6,4490.5,0.33022664]
[1759924436875,3.96115718,4490.6,4490.5,0.00252664]
[1759924437276,3.96115718,4490.6,4490.5,0.33022664]
[1759924439076,3.96115718,4490.6,4490.5,0.00252664]
[1759924439978,3.96115718,4490.6,4490.5,0.33022664]
[1759924442884,3.51754718,4490.6,4490.5,1.28254664]
[1759924443086,4.18415718,4490.6,4490.5,0.67632664]
[1759924443482,4.18415718,4490.6,4490.5,0.33022664]
[1759924443680,4.18415718,4490.6,4490.5,0.00252664]
[1759924444386,4.18415718,4490.6,4490.5,0.33022664]
[1759924444790,3.96115718,4490.6,4490.5,0.33022664]
[1759924445083,4.18415718,4490.6,4490.5,0.00252664]
[1759924445588,4.18415718,4490.6,4490.5,0.33022664]
[1759924446185,4.18415718,4490.6,4490.5,0.00252664]
[1759924447089,4.18415718,4490.6,4490.5,0.33022664]
[1759924447386,3.96115718,4490.6,4490.5,0.33022664]
[1759924447579,4.18415718,4490.6,4490.5,0.33022664]
[1759924449091,3.91825718,4490.6,4490.5,1.28254664]
[1759924449289,3.91825718,4490.6,4490.5,0.88182664]
[1759924449584,4.18415718,4490.6,4490.5,0.67632664]
[1759924449787,4.18415718,4490.6,4490.5,0.33022664]
[1759924450190,4.18415718,4490.6,4490.5,0.00252664]
[1759924451782,4.18415718,4490.6,4490.5,0.33022664]
[1759924454083,3.78344718,4490.6,4490.5,0.73094664]
[1759924454283,3.78344718,4490.6,4490.5,1.28254664]
[1759924454284,3.51754718,4490.6,4490.5,1.28254664]
[1759924454892,3.91825718,4490.6,4490.5,1.28254664]
[1759924455486,4.18415718,4490.6,4490.5,0.88182664]
[1759924455687,4.18415718,4490.6,4490.5,0.33022664]
[1759924455889,4.18415718,4490.6,4490.5,0.67632664]
[1759924457591,4.18415718,4490.6,4490.5,0.33022664]
[1759924459683,4.18415718,4490.6,4490.5,0.00252664]
[1759924460089,4.18415718,4490.6,4490.5,0.73284664]
[1759924460690,4.18415718,4490.6,4490.5,0.53812664]
[1759924462385,4.18415718,4490.6,4490.5,0.67422664]
[1759924462784,4.18415718,4490.6,4490.5,1.07494664]
[1759924463687,3.91825718,4490.6,4490.5,1.28054664]
[1759924464091,3.82659345,4490.6,4490.5,1.28054664]
[1759924464292,3.83389345,4490.6,4490.5,1.28054664]
[1759924464584,1.26759,4491.6,4491.1,0.3296]
[1759924464785,0.60836,4491.2,4491.1,0.7412]
[1759924464986,1.35986944,4491.2,4491.1,0.7412]
[1759924465194,4.50033462,4491.2,4491.1,0.7412]
[1759924465494,4.27733462,4491.2,4491.1,0.7412]
[1759924465795,4.50033462,4491.2,4491.1,0.7412]
[1759924469795,4.76633462,4491.2,4491.1,0.7412]
[1759924470799,4.76633462,4491.2,4491.1,0.5356]
[1759924474100,4.76633462,4491.2,4491.1,0.3296]
[1759924474291,0.82781,4490.7,4490.6,0.60671]
[1759924474594,1.09381,4490.6,4490.5,0.00252664]
[1759924474792,1.09381,4490.6,4490.5,1.07494664]
[1759924475293,0.82781,4490.6,4490.5,1.28054664]
[1759924476093,0.223,4490.7,4490.5,1.28054664]
[1759924476094,0.2077,4490.8,4490.7,0.5352]
[1759924476296,0.4307,4490.8,4490.7,0.7412]
[1759924476596,3.27193507,4490.8,4490.7,0.7412]
[1759924477291,3.67263507,4490.8,4490.7,1.14191]
[1759924478198,3.67263507,4490.8,4490.7,0.7412]
[1759924478695,3.89203507,4490.8,4490.7,0.7412]
[1759924481700,3.89203507,4490.8,4490.7,1.14191]
[1759924482001,4.15803507,4490.8,4490.7,0.7412]
[1759924482301,4.15803507,4490.8,4490.7,0.3296]
[1759924482800,3.93503507,4490.8,4490.7,0.3296]
[1759924482995,4.15803507,4490.8,4490.7,0.3296]
[1759924483402,0.40071,4490.6,4490.5,0.13862664]
[1759924483603,1.30401,4490.6,4490.5,0.72544664]
[1759924483795,1.30401,4490.6,4490.5,1.08324664]
[1759924484304,1.30401,4490.6,4490.5,0.68252664]
[1759924486206,0.9033,4490.6,4490.5,1.08324664]
[1759924486504,1.30401,4490.6,4490.5,1.08324664]
[1759924486706,0.9033,4490.6,4490.5,1.08324664]
[1759924486899,1.30401,4490.6,4490.5,1.08324664]
[1759924487503,1.08101,4490.6,4490.5,1.08324664]
[1759924487703,1.30401,4490.6,4490.5,1.08324664]
[1759924488807,1.30401,4490.6,4490.5,0.68252664]
[1759924489206,1.30401,4490.6,4490.5,1.08324664]
[1759924489808,1.08101,4490.6,4490.5,1.08324664]
[1759924490009,1.30401,4490.6,4490.5,1.08324664]
[1759924493014,0.9033,4490.6,4490.5,1.08324664]
[1759924493214,0.6373,4490.6,4490.5,1.29004664]
[1759924493512,0.902,4490.6,4490.5,1.29004664]
[1759924494415,0.679,4490.6,4490.5,1.29004664]
[1759924494610,1.07971,4490.6,4490.5,1.29004664]
[1759924494815,1.30271,4490.6,4490.5,1.29004664]
[1759924496817,0.902,4490.6,4490.5,1.29004664]
[1759924499520,1.30271,4490.6,4490.5,1.29004664]
[1759924500224,1.30271,4490.6,4490.5,0.88932664]
[1759924500614,1.30271,4490.6,4490.5,1.29004664]
[1759924502122,0.902,4490.6,4490.5,1.29004664]
[1759924502322,0.679,4490.6,4490.5,1.29004664]
[1759924502625,0.902,4490.6,4490.5,1.29004664]
[1759924503521,1.30271,4490.6,4490.5,1.29004664]
[1759924504922,1.03801,4490.6,4490.5,1.29004664]
[1759924505624,1.00159,4491.5,4490.8,0.4164]
[1759924505827,0.82979,4490.9,4490.8,0.4164]
[1759924506013,1.84945553,4490.9,4490.8,0.2096]
[1759924506216,0.40071,4490.6,4490.5,0.13322664]
[1759924506415,0.82981,4490.6,4490.5,0.34282664]
[1759924506823,0.82981,4490.6,4490.5,1.08484664]
[1759924507122,0.82981,4490.6,4490.5,0.68412664]
[1759924507425,0.82981,4490.6,4490.5,1.08484664]
[1759924508324,0.82981,4490.6,4490.5,1.29164664]
[1759924510830,1.09451,4490.6,4490.5,1.29164664]
[1759924511935,0.82981,4490.6,4490.5,1.29164664]
[1759924514728,0.6123,4490.8,4490.7,1.15841]
[1759924514924,1.14390647,4490.8,4490.7,1.15841]
[1759924515129,4.2114427,4490.8,4490.7,0.7577]
[1759924515333,4.4761427,4490.8,4490.7,0.7577]
[1759924516036,4.2114427,4490.8,4490.7,0.7577]
[1759924516237,4.21142941,4490.8,4490.7,0.7577]
[1759924516738,4.21142941,4490.8,4490.7,1.15841]
[1759924517038,4.21142941,4490.8,4490.7,0.7577]
[1759924517238,4.43442941,4490.8,4490.7,0.7577]
[1759924519739,3.90283623,4490.8,4490.7,0.7577]
[1759924519939,3.68533623,4490.8,4490.7,0.7577]
[1759924520138,3.68533623,4490.8,4490.7,1.15841]
[1759924522840,3.68533623,4490.8,4490.7,0.7577]
[1759924524145,3.68533623,4490.8,4490.7,1.15841]
[1759924526342,3.68533623,4490.8,4490.7,0.7577]
[1759924527343,3.89303623,4490.8,4490.7,0.7577]
[1759924527744,4.15893623,4490.8,4490.7,0.7577]
[1759924528146,4.15893623,4490.8,4490.7,0.5509]
[1759924528448,4.15893623,4490.8,4490.7,0.3413]
[1759924530245,3.67003623,4490.8,4490.7,0.5569]
[1759924530449,3.28463623,4490.8,4490.7,1.18491]
[1759924530953,3.68533623,4490.8,4490.7,1.18491]
[1759924534849,0.40068,4491.0,4490.9,0.40068]
[1759924535164,0.421,4491.6,4491.5,0.8827]
[1759924535452,4.77382907,4491.6,4491.5,0.3139]
[1759924535651,0.40067,4491.1,4491.0,0.1259]
[1759924535853,1.04467,4491.1,4491.0,0.8827]
[1759924536254,0.82167,4491.1,4491.0,1.28338]
[1759924536449,1.04467,4491.1,4491.0,1.28338]
[1759924538346,0.83697,4491.1,4491.0,1.28338]
[1759924539556,0.40066,4491.3,4491.2,1.15745]
[1759924539758,0.62366,4491.3,4491.2,1.15745]
[1759924539958,4.06365283,4491.3,4491.2,1.15745]
[1759924541558,4.06365283,4491.3,4491.2,0.7568]
[1759924541758,4.27695283,4491.3,4491.2,0.7568]
[1759924542261,3.74661265,4491.3,4491.2,0.7568]
[1759924543360,4.76446363,4491.3,4491.2,0.3139]
[1759924544359,4.36380363,4491.3,4491.0,0.1259]
[1759924544662,4.36380363,4491.3,4490.5,0.96874664]
[1759924544663,0.221,4490.6,4490.5,0.96874664]
[1759924544865,0.223,4490.6,4490.5,0.96874664]
[1759924545155,0.84327,4491.1,4491.0,0.1361]
[1759924545360,1.06627,4491.1,4491.0,0.4632]
[1759924545561,3.93631681,4491.1,4491.0,0.6709]
[1759924546657,4.20241681,4491.1,4491.0,0.3271]
[1759924546858,4.73264312,4491.1,4491.0,0.3271]
[1759924547760,0.40071,4490.6,4490.5,0.13322664]
[1759924547964,1.31751,4490.6,4490.5,0.35492664]
[1759924548161,4.24074863,4490.6,4490.5,0.00252664]
[1759924548463,4.24074863,4490.6,4490.5,0.34322664]
[1759924549463,4.24074863,4490.6,4490.5,0.00252664]
[1759924550264,4.77078178,4490.6,4490.5,0.00252664]
[1759924560980,4.76994771,4490.6,4490.5,0.00252664]
[1759924561178,4.24074863,4490.6,4490.5,0.00252664]
[1759924563476,4.24074863,4490.6,4490.5,0.56492664]
[1759924563780,4.24074863,4490.6,4490.5,0.69702664]
[1759924564582,3.97464863,4490.6,4490.5,0.91692664]
[1759924564988,4.24074863,4490.6,4490.5,0.91692664]
[1759924566080,3.76194863,4490.6,4490.5,1.31764664]
[1759924566479,0.2661,4491.2,4490.6,0.40071]
[1759924566680,1.05137,4491.1,4491.0,0.9144]
[1759924566879,3.97757584,4491.1,4491.0,0.9144]
[1759924567385,3.54987584,4491.1,4491.0,0.9144]
[1759924567781,3.76487584,4491.1,4491.0,0.9144]
[1759924567981,3.97757584,4491.1,4491.0,0.9144]
[1759924568183,4.24367584,4491.1,4491.0,0.3407]
[1759924568381,0.82841,4490.7,4490.6,0.5624]
[1759924568587,1.31751,4490.7,4490.6,0.5624]
[1759924569378,1.31751,4490.7,4490.5,0.13462664]
[1759924569379,0.82841,4490.6,4490.5,0.00252664]
[1759924569579,1.09451,4490.6,4490.5,0.69702664]
[1759924569781,4.04051885,4490.6,4490.5,0.69702664]
[1759924571685,4.04051885,4490.6,4490.5,0.34322664]
[1759924572281,4.04051885,4490.6,4490.5,0.00252664]
[1759924577187,0.82365,4489.1,4489.0,2.12516156]
[1759924577391,1.31025,4489.1,4489.0,0.3404]
[1759924577686,0.82989,4488.6,4488.5,0.8986]
[1759924577880,1.31649,4488.6,4488.5,0.8986]
[1759924578080,4.17329508,4488.6,4488.5,0.90118181]
[1759924578279,4.17329508,4488.6,4488.5,0.68498181]
[1759924578685,4.17329508,4488.6,4488.5,0.34458181]
[1759924582786,4.17329508,4488.6,4488.5,0.00258181]
[1759924594303,0.40095,4488.0,4487.9,0.02228238]
[1759924594508,1.37755,4488.0,4487.9,0.02228238]
[1759924594808,4.17088375,4488.0,4487.9,0.36428238]
[1759924595504,4.17088375,4488.0,4487.9,0.36713493]
[1759924597705,3.76993375,4488.0,4487.9,0.99478493]
[1759924597910,3.07993375,4488.0,4487.9,1.21098493]
[1759924598303,3.30103375,4488.0,4487.9,1.21098493]
[1759924598506,3.50893375,4488.0,4487.9,1.21098493]
[1759924598809,3.90988375,4488.0,4487.9,1.21098493]
[1759924599311,4.17088375,4488.0,4487.9,0.02513493]
[1759924601602,4.17088375,4488.0,4487.9,0.33473493]
[1759924605811,4.23458375,4488.0,4487.9,0.02513493]
[1759924607020,4.17088375,4488.0,4487.9,0.02513493]
[1759924607219,4.17088375,4488.0,4487.9,0.35503493]
[1759924610622,4.17088375,4488.0,4487.9,0.02513493]
[1759924611218,4.17088375,4488.0,4487.9,0.35503493]
[1759924611420,4.17088375,4488.0,4487.9,0.02513493]
[1759924612620,4.17087375,4488.0,4487.9,0.35503493]
[1759924612814,4.17087375,4488.0,4487.9,0.02513493]
[1759924613020,3.94787375,4488.0,4487.9,0.02513493]
[1759924613221,4.17087375,4488.0,4487.9,0.02513493]
[1759924613823,2.85693375,4488.0,4487.9,1.20268493]
[1759924614128,0.223,4488.0,4487.9,1.20268493]
[1759924614631,3.34686783,4488.0,4487.9,1.20268493]
[1759924619224,3.74780783,4488.0,4487.9,1.20268493]
[1759924619428,3.34686783,4488.0,4487.9,1.20268493]
[1759924620324,0.002743,4488.6,4488.5,0.4009]
[1759924620529,0.225743,4488.6,4488.5,1.314]
[1759924620725,3.85539919,4488.6,4488.5,0.9131]
[1759924621125,3.85539919,4488.6,4488.5,0.694]
[1759924621325,3.85539919,4488.6,4488.5,0.3299]
[1759924622126,3.85539919,4488.6,4488.5,0.694]
[1759924623025,3.85539919,4488.6,4488.0,0.1365]
[1759924623232,0.4429,4488.0,4487.9,0.35503493]
[1759924623427,0.927,4488.0,4487.9,0.35503493]
[1759924623627,3.76428326,4488.0,4487.9,0.35503493]
[1759924623931,3.76428326,4488.0,4487.9,0.02513493]
[1759924624321,3.76428326,4488.0,4487.9,0.58263493]
[1759924625830,3.76428326,4488.0,4487.9,0.35503493]
[1759924626224,3.76428326,4488.0,4487.9,0.02513493]
[1759924626724,3.76428326,4488.0,4487.9,0.35503493]
[1759924627029,3.76428326,4488.0,4487.9,0.02513493]
[1759924627233,3.82798326,4488.0,4487.9,0.02513493]
[1759924627620,3.76428326,4488.0,4487.9,0.02513493]
[1759924628431,3.76428326,4488.0,4487.9,0.35503493]
[1759924628929,4.16523326,4488.0,4487.9,0.35503493]
[1759924631528,3.28018326,4488.0,4487.9,1.20268493]
[1759924631835,3.50318326,4488.0,4487.9,1.20268493]
[1759924632331,3.90413326,4488.0,4487.9,1.20268493]
[1759924633535,3.06028326,4488.0,4487.9,1.20268493]
[1759924634034,2.83728326,4488.0,4487.9,1.20268493]
[1759924634332,1.004993,4488.6,4487.9,1.20268493]
[1759924634333,0.002743,4488.6,4488.5,1.314]
[1759924634532,0.225743,4488.6,4488.5,1.314]
[1759924638829,0.443543,4488.6,4488.5,1.314]
[1759924640041,0.220543,4488.6,4488.5,1.314]
[1759924640243,0.443543,4488.6,4488.5,1.314]
[1759924640435,0.917143,4488.6,4488.5,1.314]
[1759924640940,0.655943,4488.6,4488.5,1.314]
[1759924641638,0.443543,4488.6,4488.5,1.314]
[1759924643035,0.225743,4488.6,4488.5,1.314]
[1759924645340,0.439143,4488.6,4488.5,1.314]
[1759924646141,0.225743,4488.6,4488.5,1.314]
[1759924650240,0.002743,4488.6,4488.5,1.314]
[1759924650443,35.76693,4490.0,4489.7,0.2253]
[1759924650639,0.82658,4489.8,4489.7,0.7849]
[1759924650944,4.30851432,4489.8,4489.7,0.7849]
[1759924651146,4.56971432,4489.8,4489.7,0.7849]
[1759924651339,4.57243386,4489.8,4489.7,0.7849]
[1759924651644,4.57243386,4489.8,4489.7,0.5614]
[1759924652145,4.57243386,4489.8,4489.7,0.3361]
[1759924655047,4.57243386,4489.8,4489.7,0.5614]
[1759924655844,0.4258,4489.6,4489.4,0.3361]
[1759924656142,0.4258,4489.4,4489.3,0.84962]
[1759924656642,0.4258,4489.4,4489.3,1.18572]
[1759924656845,1.08782,4489.4,4489.3,0.3361]
[1759924657048,4.04757472,4489.4,4489.3,0.3361]
[1759924657652,0.4258,4489.1,4489.0,0.52615]
[1759924657838,0.91,4489.1,4489.0,0.86225]
[1759924658240,0.91,4489.1,4489.0,1.08755]
[1759924658445,0.91,4489.1,4489.0,1.31105]
[1759924659351,1.31085,4489.1,4489.0,1.31105]
[1759924659750,1.04965,4489.1,4489.0,1.31105]
[1759924659951,0.6488,4489.1,4489.0,1.31105]
[1759924660253,1.04965,4489.1,4489.0,1.31105]
[1759924662354,0.223,4489.1,4489.0,1.31105]
[1759924663453,0.62385,4489.1,4489.0,1.31105]
[1759924664150,0.84655,4489.1,4489.0,1.31105]
[1759924667755,0.4457,4489.1,4489.0,1.31105]
[1759924667960,0.223,4489.1,4489.0,1.31105]
[1759924668257,0.6474,4489.1,4489.0,1.31105]
[1759924668957,1.04825,4489.1,4489.0,1.31105]
[1759924670856,1.31005,4489.1,4489.0,0.86225]
[1759924671054,4.24028957,4489.1,4489.0,0.3361]
[1759924671247,1.08709,4488.7,4488.6,0.94389]
[1759924671452,1.31009,4488.7,4488.6,0.94389]
[1759924671957,1.04829,4488.7,4488.6,1.15269]
[1759924677956,0.6474,4488.7,4488.6,1.15269]
[1759924678162,0.223,4488.7,4488.6,1.15269]
[1759924678366,1.08701,4489.5,4489.4,0.543]
[1759924678658,4.44550699,4489.5,4489.4,0.7518]
[1759924678861,4.70730699,4489.5,4489.4,0.7518]
[1759924679059,4.70730699,4489.5,4489.4,0.543]
[1759924681460,4.48430699,4489.5,4489.4,0.543]
[1759924681661,4.70730699,4489.5,4489.4,0.543]
[1759924682261,4.70730699,4489.5,4489.4,0.3161]
[1759924684460,4.48430699,4489.5,4489.4,0.3161]
[1759924684661,4.70730699,4489.5,4489.4,0.3161]
[1759924686960,4.08349699,4489.5,4489.4,1.70106761]
[1759924687165,4.02110699,4489.5,4489.4,1.90986761]
[1759924687658,3.62029699,4489.5,4489.4,1.90986761]
[1759924687858,0.40350954,4489.8,4489.7,0.83649]
[1759924688053,1.15602264,4489.8,4489.7,1.90983761]
[1759924688259,4.2119721,4489.8,4489.7,1.90983761]
[1759924690562,4.2119721,4489.8,4489.7,1.50904761]
[1759924691258,4.4214721,4489.8,4489.7,1.50904761]
[1759924691456,4.4214721,4489.8,4489.7,0.7518]
[1759924691764,4.6832721,4489.8,4489.7,0.7518]
[1759924692167,4.6832721,4489.8,4489.7,0.3161]
[1759924692360,0.6157,4489.6,4489.5,0.1239]
[1759924692561,1.31,4489.6,4489.5,0.3161]
[1759924692756,4.20836141,4489.6,4489.5,0.3161]
[1759924693567,4.20836141,4489.6,4489.5,0.6669]
[1759924695068,3.94656141,4489.6,4489.5,0.8757]
[1759924695263,4.20836141,4489.6,4489.5,0.8757]
[1759924697160,4.20836141,4489.6,4489.5,0.3161]
[1759924698467,4.20836141,4489.6,4489.5,0.5255]
[1759924698868,4.20836141,4489.6,4489.5,0.6604]
[1759924699773,4.737826,4489.6,4489.5,0.6604]
[1759924701675,1.07994,4489.2,4489.1,0.75724761]
[1759924701872,1.30294,4489.2,4489.1,0.75724761]
[1759924702074,1.30294,4489.2,4489.1,0.96664761]
[1759924702264,1.04174,4489.2,4489.1,1.92049761]
[1759924703275,0.83284,4489.2,4489.1,1.51964761]
[1759924704373,0.223,4489.2,4489.1,1.51964761]
[1759924704681,0.82139954,4489.8,4489.7,0.7624]
[1759924704972,4.52835808,4489.8,4489.7,0.7624]
[1759924705181,4.78955808,4489.8,4489.7,0.7624]
[1759924706182,4.78955808,4489.8,4489.7,0.5377]
[1759924709479,4.25998191,4489.8,4489.7,0.5377]
[1759924710178,4.78947649,4489.8,4489.7,0.5377]
[1759924712386,4.52827649,4489.8,4489.7,0.7624]
[1759924712586,4.78947649,4489.8,4489.7,0.7624]
[1759924712793,4.78947649,4489.8,4489.7,0.5377]
[1759924713880,4.78947649,4489.8,4489.5,0.1349]
[1759924714180,1.0799,4489.6,4489.5,0.3283]
[1759924714376,1.83239458,4489.6,4489.5,0.3283]
[1759924714582,4.20863991,4489.6,4489.5,0.5377]
[1759924715377,4.73819302,4489.6,4489.5,0.5377]
[1759924716178,4.73819302,4489.6,4489.5,0.3283]
[1759924717387,4.51519302,4489.6,4489.5,0.3283]
[1759924717584,4.73819302,4489.6,4489.5,0.3283]
[1759924718186,4.51519302,4489.6,4489.5,0.3283]
[1759924718389,4.73819302,4489.6,4489.5,0.3283]
[1759924718589,4.73819302,4489.6,4489.5,0.6726]
[1759924719892,3.94743991,4489.6,4489.5,0.8973]
[1759924720996,4.20863991,4489.6,4489.5,0.8973]
[1759924721491,4.73850851,4489.6,4489.5,0.6726]
[1759924721884,4.73850851,4489.6,4489.5,0.3283]